{"text_format":"1","workbook":"xlsx","n_sheets":1,"sheets":["SURVEY FORM"],"not_rendered":{"charts":0,"images":3,"macros":1,"external_links":0,"defined_names":0,"comments":0,"pivot_tables":0},"unopened":[],"bounds":{"document_bytes":16777216,"sheet_cells":100000,"rows_first":2000,"rows_last":500,"rows_between":2000,"halvings":0,"cell_chars":16384,"cell_head_chars":4096},"cells_cut":0,"cells_raw":0,"read":"whole","date_system":"1900"}

{"sheet":"SURVEY FORM","index":0,"n_rows":121,"n_cols":20,"rows_kept":121,"cut":false,"hidden":false,"merged":[[0,4,0,8],[1,4,1,8],[2,4,2,8],[0,9,2,10],[63,4,63,8],[64,4,64,8],[65,4,65,8],[63,9,65,10],[110,1,113,13],[58,1,58,13],[59,1,59,13],[60,1,60,13],[100,1,100,5],[100,6,100,13],[81,10,81,11],[73,10,73,11],[74,10,74,11],[67,1,67,13],[98,3,98,9],[95,1,95,2],[96,1,96,2],[97,1,97,2],[98,1,98,2],[96,3,96,9],[53,7,53,11],[47,1,47,8],[63,1,65,3],[63,11,65,13],[52,7,52,11],[74,1,74,2],[93,1,93,13],[95,3,95,9],[77,10,77,11],[78,10,78,11],[79,10,79,11],[82,10,82,11],[6,1,6,13],[11,1,11,13],[12,1,12,13],[5,1,5,13],[7,1,7,13],[9,1,9,13],[10,1,10,13],[8,1,8,13],[71,1,71,5],[71,6,71,13],[54,7,56,13],[57,1,57,13],[28,1,28,13],[34,5,34,13],[40,1,40,13],[46,1,46,13],[25,11,25,13],[56,2,56,3],[52,4,52,5],[53,4,53,5],[26,1,26,13],[27,1,27,5],[27,6,27,13],[56,4,56,5],[0,1,2,3],[25,1,25,10],[13,1,13,13],[73,3,73,9],[74,3,74,9],[72,12,72,13],[48,1,48,13],[50,1,51,1],[0,11,2,13],[3,1,3,13],[4,1,4,13],[50,2,50,3],[51,2,51,3],[50,4,50,5],[51,4,51,5],[52,2,52,3],[53,2,53,3],[54,2,54,3],[55,2,55,3],[73,1,73,2],[38,5,38,7],[74,12,74,13],[49,1,49,5],[49,6,49,13],[80,12,80,13],[80,10,80,11],[89,12,89,13],[90,2,90,7],[90,8,90,9],[91,8,91,9],[91,10,91,11],[91,12,91,13],[84,1,84,5],[84,6,84,13],[81,12,81,13],[61,1,61,13],[68,1,68,13],[45,4,45,6],[44,4,44,6],[69,1,69,13],[37,5,37,7],[39,5,39,7],[29,1,39,4],[41,1,45,3],[42,4,42,6],[32,5,32,7],[54,4,54,5],[55,4,55,5],[43,4,43,6],[29,5,29,7],[30,5,30,7],[31,5,31,7],[33,5,33,7],[35,5,35,7],[36,5,36,7],[41,4,41,6],[47,9,47,13],[50,7,50,11],[51,7,51,11],[78,12,78,13],[79,12,79,13],[76,3,76,9],[75,1,75,2],[76,1,76,2],[75,3,75,9],[82,12,82,13],[95,12,95,13],[95,10,95,11],[81,1,81,2],[81,3,81,9],[79,1,79,2],[82,1,82,2],[79,3,79,9],[82,3,82,9],[94,1,94,5],[94,6,94,13],[77,1,77,2],[78,1,78,2],[78,3,78,9],[80,1,80,2],[80,3,80,9],[77,3,77,9],[83,1,83,13],[72,1,72,2],[72,3,72,9],[72,10,72,11],[75,10,75,11],[76,10,76,11],[73,12,73,13],[75,12,75,13],[76,12,76,13],[77,12,77,13],[23,1,23,13],[14,1,14,13],[19,10,19,13],[20,10,20,13],[21,10,21,13],[22,10,22,13],[17,10,18,13],[15,3,15,6],[15,7,15,9],[16,3,16,6],[16,7,16,9],[17,1,17,2],[17,3,17,6],[17,7,17,9],[18,1,18,2],[18,3,18,4],[18,5,18,6],[18,7,18,9],[120,1,120,2],[120,3,120,6],[120,7,120,8],[120,9,120,13],[115,1,115,5],[115,6,115,13],[116,1,116,2],[116,3,116,6],[116,7,116,8],[116,9,116,13],[117,1,117,2],[117,3,117,6],[117,7,117,8],[117,9,117,13],[89,2,89,7],[89,8,89,9],[89,10,89,11],[118,1,118,2],[118,3,118,6],[118,7,118,8],[118,9,118,13],[119,1,119,2],[119,3,119,6],[119,7,119,8],[119,9,119,13],[104,1,107,13],[109,1,109,13],[101,1,101,12],[102,1,102,12],[92,2,92,7],[96,12,96,13],[97,12,97,13],[96,10,96,11],[97,10,97,11],[98,10,98,11],[98,12,98,13],[97,3,97,9],[92,8,92,9],[92,10,92,11],[92,12,92,13],[90,10,90,11],[90,12,90,13],[91,2,91,7],[121,1,121,13],[24,1,24,5],[24,6,24,13],[85,8,85,9],[85,10,85,11],[85,12,85,13],[86,2,86,7],[86,8,86,9],[86,10,86,11],[86,12,86,13],[87,2,87,7],[87,8,87,9],[87,10,87,11],[87,12,87,13],[88,2,88,7],[88,8,88,9],[88,10,88,11],[88,12,88,13]]}
[null,null,null,null,"UNITED FIRE SYSTEMS",null,null,null,null,null,null,null,null,null,"YES","NEW","NONE",1]
[null,null,null,null,"1 MARK ROAD, KENILWORTH, NJ 07033  USA",null,null,null,null,null,null,null,null,null,"NO","EXISTING","SOME"]
[null,null,null,null,"908-688-0300 -- www.unitedfiresystems.com",null,null,null,null,null,null,null,null,null,null,null,"ALL"]
[]
[null,"NITROGEN-PAC™ SC SERIES  EQUIPMENT SELECTION GUIDE",null,null,null,null,null,null,null,null,null,null,null,null,null,"HIDE GRIDLINES, HEADINGS, AND FORMULA BAR"]
[null,"UFS-1001 REV 4.02 - JUN 2019 - PAGE 1 OF 2",null,null,null,null,null,null,null,null,null,null,null,null,null,"LOCK CELLS - DOUBLE-CHECK - DONE"]
[]
[null,"INSTRUCTIONS",null,null,null,null,null,null,null,null,null,null,null,null,null,"TESTS - DONE"]
[null,"1.  Become familiar with Section 2 of SC Series Installation, Commissioning, and Maintenance Manual P/N 30-NPSICM-000.",null,null,null,null,null,null,null,null,null,null,null,null,null,"CONDITIONAL FORMATTING OF ROWS 74 TO 83 - DONE"]
[null,"2.  Perform survey of sprinkler system(s) to be protected by a NITROGEN-PAC™ SC Series sprinkler corrosion inhibiting system.",null,null,null,null,null,null,null,null,null,null,null,null,null,"APPLY PASSWORD"]
[null,"3.  Items in BLUE boxes should be filled in by person performing survey."]
[null,"4.  Items on both pages in RED boxes automatically fill based on entered survey information."]
[null,"5.  Maximum allowable supervisory pressure is 40 PSI."]
[]
[null," NITROGEN-PAC SC UNIT LIMIITATIONS  = AND =  AUTOMATIC UNIT SELECTION"]
[null,null,null,"FOR INITIAL-FILL WITH AIR",null,null,null,"FOR NITROGEN"]
[null,null,null,"(IF REQUIRED)",null,null,null,"GENERATION CAPACITY - ",null,null,null,null,null,null,null,"MAX"]
[null,"MAXIMUM",null,"SINGLE  LARGEST RISER - GALLONS",null,null,null,"MAXIMUM CAPACITY",null,null,"UNIT MODEL NUMBER",null,null,null,null,"NO. OF","INITIAL","NITROGEN"]
[null,"NUMBER OF RISERS",null,"UP TO 20 PSI",null,"OVER 20 TO 40 PSI",null,"OF ALL RISERS - GALLONS",null,null,null,null,null,null,null,"RISERS","FILL","CAPACITY"]
[null,3," RISERS",600," GALLONS",300," GALLONS",800,"  GALLONS",null,"MODEL SC-1S",null,null,null,null,{"$f":"IF(M51<=B20,\"OK\",\"NG\")","v":"OK"},{"$f":"IF(L26=\"NO\",\"OK\",IF(AND(M54<=20,M52<=D20),\"OK\",IF(AND(M54>20,M52<=F20),\"OK\",\"NG\")))","v":"OK"},{"$f":"IF(M53<=H20,\"OK\",\"NG\")","v":"OK"},{"$f":"IF(AND(P20=\"OK\",Q20=\"OK\",R20=\"OK\"),\"OK\",\"NG\")","v":"OK"}]
[null,5," RISERS",600," GALLONS",300," GALLONS",1200,"  GALLONS",null,"MODEL SC-1M",null,null,null,null,{"$f":"IF(M51<=B21,\"OK\",\"NG\")","v":"OK"},{"$f":"IF(L26=\"NO\",\"OK\",IF(AND(M54<=20,M52<=D21),\"OK\",IF(AND(M54>20,M52<=F21),\"OK\",\"NG\")))","v":"OK"},{"$f":"IF(M53<=H21,\"OK\",\"NG\")","v":"OK"},{"$f":"IF(AND(P21=\"OK\",Q21=\"OK\",R21=\"OK\"),\"OK\",\"NG\")","v":"OK"}]
[null,3," RISERS",950," GALLONS",475," GALLONS",1600,"  GALLONS",null,"MODEL SC-2M",null,null,null,null,{"$f":"IF(M51<=B22,\"OK\",\"NG\")","v":"OK"},{"$f":"IF(L26=\"NO\",\"OK\",IF(AND(M54<=20,M52<=D22),\"OK\",IF(AND(M54>20,M52<=F22),\"OK\",\"NG\")))","v":"OK"},{"$f":"IF(M53<=H22,\"OK\",\"NG\")","v":"OK"},"OK"]
[null,5," RISERS",950," GALLONS",475," GALLONS",4000,"  GALLONS",null,"MODEL SC-2L",null,null,null,null,{"$f":"IF(M51<=B23,\"OK\",\"NG\")","v":"OK"},{"$f":"IF(L26=\"NO\",\"OK\",IF(AND(M54<=20,M52<=D23),\"OK\",IF(AND(M54>20,M52<=F23),\"OK\",\"NG\")))","v":"OK"},{"$f":"IF(M53<=H23,\"OK\",\"NG\")","v":"OK"},"OK"]
[]
[null,"STEP 1 - INITIAL-FILL WITH AIR",null,null,null,null,"CLICK HERE TO CLEAR STEP 1 - INITIAL-FILL WITH AIR SELECTION"]
[null,"IS NITROGEN-PAC SYSTEM REQUIRED TO PERFORM INITIAL-FILL FUNCTION?  "]
[]
[null,"STEP 2 - PIPE VOLUME CALCULATOR",null,null,null,null,"CLICK HERE TO CLEAR STEP 2 - PIPE VOLUME CALCULATOR ENTRIES"]
[]
[null,"SCHEDULE 40 PIPE",null,null,null,"NOMINAL PIPE SIZE",null,null,"1/2\"","3/4\"","1\"","1-1/4\"","1-1/2\"","2\""]
[null,null,null,null,null,"GALLONS PER FOOT",null,null,1.6E-2,2.8000000000000001E-2,4.4999999999999998E-2,7.8E-2,0.106,0.17499999999999999,null,"(ROWS 32, 33, 38, 39, 44, 45 VALIDATION CRITERIA = DECIMAL NUMBER UP TO 5000.0)"]
[null,null,null,null,null,"ENTER FEET OF PIPE"]
[null,null,null,null,null,"ENTER INCHES OF PIPE"]
[null,null,null,null,null,"PIPE VOLUME (GALLONS)",null,null,{"$f":"I31*(I32+(I33/12))","v":0},{"$f":"J31*(J32+(J33/12))","v":0},0,0,0,0]
[]
[null,null,null,null,null,"NOMINAL PIPE SIZE",null,null,"2-1/2\"","3\"","4\"","5\"","6\"","8\""]
[null,null,null,null,null,"GALLONS PER FOOT",null,null,0.249,0.38400000000000001,0.66200000000000003,1.04,1.5009999999999999,2.5990000000000002]
[null,null,null,null,null,"ENTER FEET OF PIPE"]
[null,null,null,null,null,"ENTER INCHES OF PIPE"]
[null,null,null,null,null,"PIPE VOLUME (GALLONS)",null,null,{"$f":"I37*(I38+(I39/12))","v":0},{"$f":"J37*(J38+(J39/12))","v":0},0,0,0,0]
[]
[null,"SCHEDULE 10 PIPE",null,null,"NOMINAL PIPE SIZE",null,null,"2\"","2-1/2\"","3\"","4\"","5\"","6\"","8\""]
[null,null,null,null,"GALLONS PER FOOT ",null,null,0.19,0.28399999999999997,0.434,0.74099999999999999,1.0980000000000001,1.649,2.7770000000000001]
[null,null,null,null,"ENTER FEET OF PIPE"]
[null,null,null,null,"ENTER INCHES OF PIPE"]
[null,null,null,null,"PIPE VOLUME",null,null,{"$f":"H43*(H44+(H45/12))","v":0},{"$f":"I43*(I44+(I45/12))","v":0},0,0,0,0,0]
[]
[null,"TOTAL PIPE VOLUME IN GALLONS - TRANSFER TO STEP 3",null,null,null,null,null,null,null,{"$f":"ROUNDUP((I34+J34+K34+L34+M34+N34+I40+J40+K40+L40+M40+N40+H46+I46+J46+K46+L46+M46+N46),0)","v":0}]
[]
[null,"STEP 3 - INDIVIDUAL RISER INFORMATION",null,null,null,null,"CLICK HERE TO CLEAR STEP 3 - INDIVIDUAL RISER INFORMATION"]
[null,"RISER #","PIPE VOLUME",null,"SUPERVISORY",null,null,"NUMBER OF RISERS IN SYSTEM = ",null,null,null,null,{"$f":"COUNT(C53:D57)","v":0},{"$f":"P51","v":"RISERS"},null,{"$f":"IF(M51=1,\"RISER\",\"RISERS\")","v":"RISERS"}]
[null,null,"(GALLONS)",null,"PRESSURE (PSIG)",null,null,"CAPACITY IN GALLONS OF SINGLE LARGEST RISER =",null,null,null,null,{"$f":"MAX(C53:D57)","v":0},{"$f":"P52","v":"GALLONS"},null,{"$f":"IF(M52=1,\"GALLON\",\"GALLONS\")","v":"GALLONS"}]
[null,1,null,null,null,null,null,"CAPACITY IN GALLONS OF ALL RISERS = ",null,null,null,null,{"$f":"SUM(C53:D57)","v":0},{"$f":"P53","v":"GALLONS"},null,{"$f":"IF(M53=1,\"GALLON\",\"GALLONS\")","v":"GALLONS"}]
[null,2,null,null,null,null,null,"HIGHEST VALUE OF SUPERVISORY PRESSURE = ",null,null,null,null,{"$f":"MAX(E53:F57)","v":0},"PSIG"]
[null,3,null,null,null,null,null,"YOUR RISER INFORMATION EXCEEDS THE CAPACITY OF A SINGLE NITROGEN-PAC™ SC SERIES UNIT.  USE MULTIPLE UNITS OR A NITROGEN-PAC™ M SERIES MODULAR SYSTEM."]
[null,4]
[null,5,null,null,null,null,null,null,null,null,null,null,null,null,null,{"$f":"IF(AND(NOT(M51=0),K74=0,K75=0,K76=0,K77=0),1,0)","v":0},"(CELL P57 - IF THERE ARE RISERS BUT NO NITROGEN-PAC, DISPLAY MESSAGE IN H55:N57)"]
[]
[null,"!! IMPORTANT !!  MAXIMUM GALLON VALUES ARE BASED ON SPRINKLER PIPING LEAKAGE NOT EXCEEDING"]
[null,"NFPA 13 ACCEPTANCE REQUIREMENT OF MAXIMUM 1-1/2 PSIG IN 24 HOURS STARTING AT 40 PSIG."]
[null,"UNITED FIRE SYSTEMS RECOMMENDS PERFORMING LEAKAGE TEST, AND CORRECTING EXCESS LEAKAGE,"]
[null,"BEFORE DESIGNING, INSTALLING, AND COMMISSIONING A NITROGEN-PAC™ SYSTEM."]
[]
[null,null,null,null,"UNITED FIRE SYSTEMS"]
[null,null,null,null,"1 MARK ROAD, KENILWORTH, NJ 07033  USA"]
[null,null,null,null,"908-688-0300 -- www.unitedfiresystems.com"]
[]
[null,"NITROGEN-PAC™ SC SERIES  EQUIPMENT SELECTION GUIDE"]
[null,"UFS-1001 REV 4.02 - JUN 2019 - PAGE 2 OF 2"]
[]
[null,null,null,null,null,null,null,null,null,null,null,null,null,2.5990000000000002]
[null,"STEP 4 - AUTOMATIC BILL OF MATERIALS"]
[null,"UFS P/N",null,"DESCRIPTION",null,null,null,null,null,null,"QUANTITY",null,"DATA SHEET"]
[null,"SC-1-S-115-1",null,"NITROGEN-PAC™ SC SERIES SYSTEM UNIT MODEL SC-1S",null,null,null,null,null,null,{"$f":"IF(AND(NOT(M51=0),S20=\"OK\"),1,0)","v":0},null,"UFS-600A"]
[null,"SC-1-M-115-1",null,"NITROGEN-PAC™ SC SERIES SYSTEM UNIT MODEL SC-1M",null,null,null,null,null,null,{"$f":"IF(AND(NOT(M51=0),S21=\"OK\",K74=0),1,0)","v":0},null,"UFS-600A"]
[null,"SC-2-M-115-1",null,"NITROGEN-PAC™ SC SERIES SYSTEM UNIT MODEL SC-2M",null,null,null,null,null,null,{"$f":"IF(AND(NOT(M51=0),S22=\"OK\",K74=0,K75=0),1,0)","v":0},null,"UFS-600B"]
[null,"SC-2-L-115-1",null,"NITROGEN-PAC™ SC SERIES SYSTEM UNIT MODEL SC-2L",null,null,null,null,null,null,{"$f":"IF(AND(NOT(M51=0),S23=\"OK\",K74=0,K75=0,K76=0),1,0)","v":0},null,"UFS-600B"]
[null,"AMD-1",null,"NITROGEN /  AIR MAINTENANCE DEVICE",null,null,null,null,null,null,{"$f":"SUM(P89:P93)","v":0},null,"UFS-318A"]
[null,"PVA-3 ",null,"PURGE VENT ASSEMBLY (MANUAL)",null,null,null,null,null,null,{"$f":"SUM(T89:T93)","v":0},null,"UFS-314A"]
[null,"TAP-G2",null,"TRUE ADVANCED PURGE (TAP) SYSTEM",null,null,null,null,null,null,{"$f":"SUM(Q89:Q93)","v":0},null,"UFS-317A"]
[null,"PVA-2",null,"PURGE VENT ASSEMBLY (FOR USE WITH TAP-G2)",null,null,null,null,null,null,{"$f":"SUM(R89:R93)","v":0},null,"UFS-314A"]
[null,"CMA-1",null,"CORROSION MONITOR ASSEMBLY",null,null,null,null,null,null,{"$f":"SUM(S89:S93)","v":0},null,"UFS-315A"]
[null,"NA-1",null,"NITROGEN ANALYZER, HANDHELD",null,null,null,null,null,null,{"$f":"IF(OR(K74=1,K75=1,K76=1,K77=1),1,0)","v":0},null,"UFS-316A"]
[]
[null,"STEP 5 - ADDITIONAL EQUIPMENT",null,null,null,null,"CLICK HERE TO CLEAR STEP 5  - ADDITIONAL EQUIPMENT"]
[null,null,null,null,null,null,null,null,"AIR",null,true,null,"CORROSION"]
[null,"RISER","HAZARD",null,null,null,null,null,"MAINTENANCE",null,"ADVANCED",null,"MONITOR",null,null,null,null,"PVA-2",null,"PVA-1"]
[null,"#","DESCRIPTION",null,null,null,null,null,"DEVICE",null,"PURGE",null,"ASSEMBLY",null,null,"AMD","TAP","(TAP)","CMA","(MANUAL)"]
[null,1,null,null,null,null,null,null,null,null,null,null,null,null,null,{"$f":"IF(AND(NOT(C53=0),I89=\"YES\"),1,0)","v":0},{"$f":"IF(AND(NOT(C53=0),K89=\"YES\"),1,0)","v":0},{"$f":"Q89","v":0},{"$f":"IF(AND(NOT(C53=0),M89=\"YES\"),1,0)","v":0},{"$f":"IF(AND(NOT(C53=0),NOT(K89=\"YES\")),1,0)","v":0}]
[null,2,null,null,null,null,null,null,null,null,null,null,null,null,null,{"$f":"IF(AND(NOT(C54=0),I90=\"YES\"),1,0)","v":0},{"$f":"IF(AND(NOT(C54=0),K90=\"YES\"),1,0)","v":0},{"$f":"Q90","v":0},{"$f":"IF(AND(NOT(C54=0),M90=\"YES\"),1,0)","v":0},{"$f":"IF(AND(NOT(C54=0),NOT(K90=\"YES\")),1,0)","v":0}]
[null,3,null,null,null,null,null,null,null,null,null,null,null,null,null,0,0,0,0,0]
[null,4,null,null,null,null,null,null,null,null,null,null,null,null,null,0,0,0,0,0]
[null,5,null,null,null,null,null,null,null,null,null,null,null,null,null,0,0,0,0,0]
[]
[null,"STEP 6 - OPTIONAL EQUIPMENT",null,null,null,null,"CLICK HERE TO CLEAR STEP 6 - OPTIONAL EQUIPMENT"]
[null,"UFS P/N",null,"DESCRIPTION",null,null,null,null,null,null,"QUANTITY",null,"DATA SHEET"]
[null,"31-100020-101",null,"MUFFLER ASSEMBLY FOR PVA-3",null,null,null,null,null,null,null,null,"UFS-314A"]
[null,"33-000003-050",null,"QTY.  (50) FEET OF CONNECTION TUBING FOR TAP",null,null,null,null,null,null,null,null,"UFS-317A"]
[null,"33-000006-000",null,"CONNECTOR, TUBE x TUBE",null,null,null,null,null,null,null,null,"UFS-317A"]
[]
[null,"STEP 7 - OTHER SURVEY QUESTIONS",null,null,null,null,"CLICK HERE TO CLEAR STEP 7 - OTHER SURVEY QUESTIONS"]
[null,"ARE SPRINKLER SYSTEM(S) NEW OR EXISTING?"]
[null,"ARE SPRINKLER SYSTEM(S) EQUIPPED WITH QUICK-OPENING DEVICES (DRY ACCELERATORS)?"]
[]
[null,{"$f":"IF(N102=\"NEW\",P105, IF(N102=\"EXISTING\",P107,IF(N102=\"\",\"\")))","v":""}]
[null,null,null,null,null,null,null,null,null,null,null,null,null,null,null,"!! IMPORTANT!!"]
[null,null,null,null,null,null,null,null,null,null,null,null,null,null,null,"EXISTING SPRINKLER SYSTEMS TYPICALLY HAVE LARGE LEAKAGE RATES.  NFPA 25 PERMITS A MAXIMUM LEAKAGE RATE OF 3 PSIG IN 2 HOURS STARTING AT 40 PSI.  THIS RATE WILL RESULT IN EXCESSIVE NITROGEN SYSTEM RUN TIME.  TO AVOID EXCESSIVE RUN  TIME AND PREMATURE COMPRESSOR REPLACEMENT, CORRECT LEAKS UNTIL THE LEAKAGE RATE DOES NOT EXCEED  1-1/2 PSIG IN 24 HOURS STARTING AT 40 PSI."]
[null,null,null,null,null,null,null,null,null,null,null,null,null,null,null,"!! IMPORTANT !!"]
[]
[null,{"$f":"IF(N103=\"YES\",P108,IF(N103=\"NO\",\"\",IF(N103=\"\",\"\")))","v":""},null,null,null,null,null,null,null,null,null,null,null,null,null,"A SYSTEM DRY ACCELERATOR, COMBINED WITH NATURAL PIPE LEAKAGE AND DELIBERATE NITROGEN PURGING, CAN LEAD TO UNWANTED DRY-PIPE VALVE TRIPS.  TO AVOID VALVE TRIPS DURING PURGING, REDUCE OTHER LEAKAGE TO NEAR-ZERO.  IF POSSIBLE, CLOSE DRY ACCELERATOR INLET VALVE DURING PURGING.  NOTE!!  CLOSING THE DRY ACCELERATOR INLET VALVE MAY LENGTHEN THE TIME FOR WATER TO REACH THE FURTHEST SPRINKLER HEAD.  ENSURE THIS IS ACCEPTABLE TO AHJ AND END-USER."]
[null,{"$f":"IF(N103=\"YES\",P110,IF(N103=\"NO\",\"\",IF(N103=\"\",\"\")))","v":""}]
[]
[]
[]
[]
[null,"STEP 8 - CUSTOMER INFORMATION",null,null,null,null,"CLICK HERE TO CLEAR STEP 8 - CUSTOMER INFORMATION"]
[null,"CUSTOMER: ",null,null,null,null,null,"PROJECT NAME: "]
[null,"ADDRESS 1: ",null,null,null,null,null,"ADDRESS 2: "]
[null,"CITY: ",null,null,null,null,null,"STATE: "]
[null,"ZIP: ",null,null,null,null,null,"CONTACT:  "]
[null,"PHONE: ",null,null,null,null,null,"EMAIL: "]